bitfinex-derivatives/quotes_BTCF0:USTF0_20251219
["timestamp","ask_amount","ask_price","bid_price","bid_amount"]
[1766154966651,0.00017069,87901.0,87884.0,0.00017069]
[1766154966838,0.0113817,87900.0,87884.0,0.00017069]
[1766154967041,0.0113817,87900.0,87874.0,2.39188]
[1766154967042,0.00017069,87901.0,87862.0,0.0113864]
[1766154967242,0.0113824,87895.0,87863.0,0.0058]
[1766154967438,0.0113827,87892.0,87864.0,0.0113863]
[1766154967641,0.0113836,87885.0,87855.0,0.0113874]
[1766154967854,0.0113831,87889.0,87858.0,0.011387]
[1766154968053,0.00396,87892.0,87845.0,0.11377599]
[1766154968260,0.00017069,87877.0,87860.0,0.00017069]
[1766154968448,0.00597069,87877.0,87860.0,0.00017069]
[1766154968852,0.00017069,87877.0,87864.0,0.0113862]
[1766154969150,0.00017069,87877.0,87860.0,0.00017069]
[1766154969351,0.00296,87883.0,87860.0,0.00017069]
[1766154969553,0.00296,87883.0,87861.0,0.0113866]
[1766154969855,0.00296,87883.0,87860.0,0.00017069]
[1766154970060,0.0143439,87883.0,87860.0,0.00017069]
[1766154970350,0.0113842,87881.0,87860.0,0.00017069]
[1766154970555,0.00017069,87880.0,87860.0,0.00017069]
[1766154970748,0.03577489,87879.0,87860.0,0.00017069]
[1766154970951,0.02439049,87878.0,87837.0,0.00052]
[1766154971258,0.02439049,87877.0,87838.0,0.00052]
[1766154971461,2.39176,87881.0,87838.0,0.00052]
[1766154971462,0.0113863,87864.0,87838.0,0.00052]
[1766154971751,0.0113863,87864.0,87831.0,0.0113905]
[1766154971752,0.0113871,87858.0,87831.0,0.0002]
[1766154971947,0.00017069,87853.0,87836.0,0.00017069]
[1766154973457,0.00012,87867.0,87843.0,0.0113889]
[1766154973652,0.02438221,87866.0,87843.0,0.00396]
[1766154973856,0.00012,87867.0,87843.0,0.00396]
[1766154974051,0.00012,87867.0,87830.0,0.0113906]
[1766154974052,0.0113865,87863.0,87830.0,0.0113906]
[1766154974258,0.00012,87867.0,87831.0,2.39588]
[1766154974456,0.00017069,87858.0,87840.0,0.00017069]
[1766154974753,0.00017069,87858.0,87840.0,0.00597069]
[1766154975753,0.00017069,87858.0,87840.0,0.00017069]
[1766154976457,0.00236,87857.0,87840.0,0.00017069]
[1766154976648,0.02437282,87856.0,87840.0,6.9e-07]
[1766154976848,0.00236,87857.0,87840.0,6.9e-07]
[1766154978663,0.0137473,87857.0,87840.0,6.9e-07]
[1766154978861,0.02436872,87856.0,87840.0,6.9e-07]
[1766154979053,0.00236,87857.0,87840.0,6.9e-07]
[1766154979373,0.47557065,87850.0,87786.0,0.0610707]
[1766154979554,0.06082533,87836.0,87785.0,0.09176175]
[1766154979760,0.06082533,87832.0,87781.0,0.11383298]
[1766154980059,0.47557065,87810.0,87778.0,2.40027849]
[1766154980256,0.0113949,87798.0,87785.0,0.00017079]
[1766154980462,0.00591505,87797.0,87785.0,7.9e-07]
[1766154980652,0.02431933,87796.0,87778.0,0.00227849]
[1766154980955,0.0113955,87793.0,87761.0,0.00164]
[1766154981155,0.02431935,87792.0,87761.0,0.00164]
[1766154981348,0.00011505,87797.0,87781.0,0.011397]
[1766154981349,0.0058,87794.0,87781.0,0.011397]
[1766154981550,4e-08,87797.0,87795.0,0.0113952]
[1766154981756,0.0113904,87833.0,87799.0,0.0113947]
[1766154981957,0.0113912,87827.0,87795.0,0.00568]
[1766154982154,0.47557065,87840.0,87795.0,0.00568]
[1766154982155,0.0113898,87837.0,87800.0,0.0113945]
[1766154982358,0.02422997,87836.0,87795.0,0.0170752]
[1766154982555,0.0113909,87829.0,87795.0,0.00568]
[1766154982761,0.00017079,87824.0,87807.0,0.00017079]
[1766154983066,0.00257079,87824.0,87807.0,0.00017079]
[1766154983257,0.0113879,87852.0,87807.0,0.00017079]
[1766154983449,0.0113883,87849.0,87812.0,0.0113929]
[1766154983651,0.0113883,87849.0,87808.0,0.0058]
[1766154983652,0.0239785,87848.0,87820.0,0.011392]
[1766154983867,0.06082533,87866.0,87830.0,0.0113907]
[1766154984060,2.42258185,87865.0,87839.0,0.0113895]
[1766154984350,0.00017079,87861.0,87843.0,0.00017079]
[1766154985554,0.0058,87860.0,87843.0,0.00017079]
[1766154985861,0.00017079,87861.0,87843.0,0.00017079]
[1766154987470,0.00017079,87861.0,87848.0,0.0113883]
[1766154987653,0.00017079,87861.0,87843.0,0.00017079]
[1766154987849,9e-08,87861.0,87843.0,0.00017079]
[1766154988051,0.0113829,87890.0,87843.0,0.00253079]
[1766154988254,0.02398914,87889.0,87844.0,0.1138278]
[1766154988456,2.3928,87891.0,87845.0,0.0113887]
[1766154988457,0.0113847,87877.0,87845.0,0.0113887]
[1766154988654,0.0058,87876.0,87852.0,0.0113877]
[1766154988854,0.0058,87876.0,87845.0,0.0058]
[1766154989061,0.002,87883.0,87852.0,0.00017079]
[1766154990057,0.00017079,87876.0,87852.0,0.00017079]
[1766154990256,0.00017079,87876.0,87852.0,0.01155859]
[1766154990663,0.00017079,87876.0,87852.0,0.00017079]
[1766154991160,0.0113858,87868.0,87852.0,0.00017079]
[1766154991456,0.00017079,87876.0,87852.0,0.00017079]
[1766154991457,0.0170653,87872.0,87852.0,0.00017079]
[1766154991660,0.00568,87872.0,87852.0,0.00017079]
[1766154992362,0.0113859,87868.0,87852.0,0.00017079]
[1766154992563,0.0113861,87866.0,87852.0,0.00017079]
[1766154992763,0.00568,87872.0,87852.0,0.00017079]
[1766154992967,0.0113862,87865.0,87852.0,0.00017079]
[1766154993166,0.0113857,87869.0,87852.0,0.00017079]
[1766154993368,0.0058,87868.0,87852.0,0.00017079]
[1766154993963,0.01155559,87876.0,87852.0,0.00017079]
[1766154993964,0.00017079,87876.0,87852.0,0.00017079]
[1766154994159,0.00017079,87876.0,87853.0,0.004]
[1766154994683,0.00017079,87876.0,87853.0,0.0113877]
[1766154994865,0.00017079,87876.0,87852.0,0.00017079]
[1766154995062,0.00227538,87898.0,87871.0,0.0113854]
[1766154995267,0.00227538,87898.0,87884.0,0.0113836]
[1766154995571,0.00112,87904.0,87872.0,0.11381225]
[1766154995772,0.00112,87904.0,87865.0,0.00564]
[1766154995967,0.0058,87917.0,87870.0,0.47557065]
[1766154996272,0.0113772,87935.0,87903.0,0.0113812]
[1766154996476,0.00110599,87928.0,87910.0,0.00017068]
[1766154997073,0.00010599,87928.0,87911.0,0.003]
[1766154997277,0.00227434,87938.0,87931.0,0.0113776]
[1766154997278,4.34e-06,87938.0,87931.0,0.0113776]
[1766154997481,0.0113736,87963.0,87932.0,0.00152]
[1766154997678,0.47557065,87970.0,87912.0,0.1710517]
[1766154997870,0.02406675,87969.0,87921.0,0.0113788]
[1766154998064,0.0113739,87960.0,87927.0,0.0113781]
[1766154998270,0.0113754,87949.0,87928.0,0.00396]
[1766154998474,0.0113754,87949.0,87930.0,0.00017056]
[1766154998972,0.00396,87955.0,87930.0,0.00017056]
[1766154999272,0.0113765,87940.0,87913.0,2.392]
[1766154999476,0.0113763,87941.0,87914.0,0.0058]
[1766154999673,0.00396,87940.0,87915.0,0.0058]
[1766154999975,0.0113778,87930.0,87915.0,0.0058]
[1766155000184,0.00017017,87931.0,87915.0,0.0058]
[1766155000376,0.00017017,87931.0,87914.0,0.00017056]
[1766155000682,0.0113795,87917.0,87900.0,2.39172]
[1766155000868,0.0113811,87904.0,87881.0,2.39172]
[1766155001063,0.00312,87917.0,87890.0,0.0113828]
[1766155001263,0.00312,87917.0,87889.0,0.011383]
[1766155001474,0.00312,87917.0,87896.0,0.0113821]
[1766155001670,0.06263743,87965.0,87896.0,0.00396]
[1766155001890,0.011374,87959.0,87896.0,0.00396]
[1766155002073,0.0113773,87934.0,87899.0,0.0113817]
[1766155002270,0.0113736,87962.0,87897.0,2.39228]
[1766155002271,0.00017066,87925.0,87908.0,0.00017066]
[1766155002471,6.6e-07,87925.0,87923.0,0.0113786]
[1766155002667,0.01364491,87978.0,87932.0,0.0113774]
[1766155002668,0.0113737,87962.0,87932.0,0.0113774]
[1766155002873,0.00396,87961.0,87923.0,2.39156]
[1766155003166,2.39156,87971.0,87923.0,2.39156]
[1766155003167,0.00396,87960.0,87936.0,0.0113769]
[1766155003372,0.00396,87960.0,87934.0,0.00396]
[1766155003572,0.00396,87960.0,87935.0,0.0058]
[1766155003774,8e-08,87950.0,87935.0,0.0058]
[1766155004281,8e-08,87950.0,87942.0,0.0113761]
[1766155004479,8e-08,87950.0,87935.0,0.0058]
[1766155004672,8e-08,87950.0,87942.0,0.0113761]
[1766155004867,8e-08,87950.0,87935.0,0.0058]
[1766155005073,8e-08,87950.0,87948.0,0.0113753]
[1766155005273,8e-08,87950.0,87949.0,0.0052]
[1766155005473,8e-08,87950.0,87949.0,0.0058]
[1766155005679,8e-08,87950.0,87947.0,0.0058]
[1766155006789,8e-08,87950.0,87933.0,0.00017057]
[1766155008282,0.0113759,87945.0,87933.0,0.00017057]
[1766155008784,8e-08,87950.0,87886.0,0.07245526]
[1766155008785,8e-08,87950.0,87912.0,2.39076]
[1766155008972,0.00564,87951.0,87913.0,0.0058]
[1766155009175,0.0113741,87959.0,87913.0,0.0058]
[1766155009398,0.00232,87958.0,87916.0,0.0113795]
[1766155009683,0.0113747,87954.0,87926.0,0.0113782]
[1766155009881,0.00017057,87946.0,87929.0,0.0113778]
[1766155010091,0.00017057,87946.0,87928.0,2.39085057]
[1766155010283,0.00232,87958.0,87934.0,0.0113772]
[1766155010477,0.0113744,87956.0,87930.0,0.0113777]
[1766155010677,0.00232,87958.0,87928.0,2.39085057]
[1766155010878,0.00232,87958.0,87929.0,0.0058]
[1766155011087,0.0136942,87958.0,87929.0,0.0058]
[1766155011283,0.00232,87958.0,87929.0,0.0058]
[1766155011991,0.0113743,87957.0,87929.0,0.0058]
[1766155012192,0.00232,87958.0,87928.0,0.00017057]
[1766155012684,0.00232,87958.0,87890.0,0.0113829]
[1766155012685,0.00232,87958.0,87906.0,2.39048]
[1766155012887,0.0568567,87980.0,87907.0,0.0058]
[1766155012888,0.02393348,87957.0,87907.0,0.0058]
[1766155013185,0.0113757,87946.0,87915.0,0.0113796]
[1766155013392,0.0113757,87946.0,87917.0,0.0113794]
[1766155013580,0.0113758,87946.0,87916.0,0.0058]
[1766155013785,0.00017057,87940.0,87922.0,0.00017057]
[1766155014284,0.0058,87956.0,87940.0,0.0113764]
[1766155014490,0.0058,87956.0,87936.0,0.00124]
[1766155014883,0.0113749,87953.0,87924.0,0.0113785]
[1766155015080,0.0058,87956.0,87925.0,0.004]
[1766155015389,0.0058,87956.0,87922.0,0.00017057]
[1766155015587,0.0113771,87935.0,87922.0,0.00157057]
[1766155015785,0.002,87944.0,87894.0,2.39036]
[1766155015995,0.0113764,87941.0,87897.0,0.011382]
[1766155016289,0.011378,87929.0,87900.0,0.0113816]
[1766155016498,0.0058,87930.0,87902.0,0.0113812]
[1766155016686,0.00396,87930.0,87902.0,0.0113812]
[1766155016895,0.00017057,87925.0,87907.0,0.00017057]
[1766155017306,0.00017057,87925.0,87907.0,0.01155127]
[1766155017512,0.00017057,87925.0,87907.0,0.00017057]
[1766155018202,0.00017057,87925.0,87886.0,0.0113833]
[1766155018408,0.0113787,87923.0,87887.0,0.0058]
[1766155018709,0.00017057,87925.0,87887.0,0.0058]
[1766155018907,0.00017057,87925.0,87902.0,0.0113813]
[1766155019103,0.0054,87924.0,87905.0,0.00017057]
[1766155019613,0.0167786,87924.0,87905.0,0.00017057]
[1766155019802,0.00017057,87925.0,87905.0,0.00017057]
[1766155020205,0.00585057,87925.0,87905.0,0.00017057]
[1766155020405,0.0113785,87924.0,87905.0,0.00017057]
[1766155020604,0.00597057,87925.0,87863.0,0.0113863]
[1766155020910,0.0113791,87920.0,87873.0,2.3904]
[1766155021107,0.00597057,87925.0,87839.0,2.39044]
[1766155021108,0.0113848,87876.0,87839.0,2.39044]
[1766155021309,0.0058,87880.0,87840.0,0.0058]
[1766155021610,0.0113849,87875.0,87844.0,0.0113888]
[1766155021912,0.0113849,87875.0,87818.0,0.0113922]
[1766155021913,0.00017067,87869.0,87851.0,6.7e-07]
[1766155022114,0.0113883,87849.0,87818.0,0.00227745]
[1766155022319,0.0058,87848.0,87828.0,0.0113909]
[1766155022609,0.0058,87848.0,87819.0,0.00084]
[1766155022810,0.00204,87866.0,87843.0,0.0113889]
[1766155023020,0.00017077,87863.0,87846.0,0.00017077]
[1766155023204,0.0113869,87860.0,87846.0,0.00017077]
[1766155023406,0.0113867,87861.0,87834.0,2.39056]
[1766155023809,0.0113874,87856.0,87833.0,0.00264]
[1766155024013,0.32436928,87850.0,87818.0,0.00227745]
[1766155024225,0.32436928,87850.0,87763.0,0.08141257]
[1766155024226,0.0113912,87827.0,87783.0,2.39092]
[1766155024407,0.32436928,87850.0,87764.0,0.0113992]
[1766155024408,0.0113943,87803.0,87764.0,0.0113992]
[1766155024718,0.00017077,87814.0,87759.0,0.0008]
[1766155024719,0.32486315,87800.0,87759.0,0.0008]
[1766155025011,0.33625775,87800.0,87759.0,0.0008]
[1766155025209,0.32486315,87780.0,87759.0,0.0008]
[1766155025404,0.0058,87779.0,87757.0,0.0114001]
[1766155025604,0.00017087,87778.0,87761.0,0.00011413]
[1766155025809,7e-08,87778.0,87761.0,0.00011413]
[1766155026017,1.5,87798.0,87783.0,0.0113967]
[1766155026316,0.00014116,87799.0,87784.0,0.0113966]
[1766155026519,0.0113904,87833.0,87788.0,0.011396]
[1766155026703,0.0113907,87831.0,87788.0,0.011396]
[1766155026906,0.0113914,87825.0,87789.0,0.11390754]
[1766155027113,0.00017087,87816.0,87789.0,0.11390754]
[1766155027410,0.00017087,87816.0,87775.0,0.0058]
[1766155027411,0.00233349,87815.0,87775.0,0.0058]
[1766155028319,0.00017087,87804.0,87769.0,0.00584]
[1766155028522,0.0004,87803.0,87770.0,0.0113985]
[1766155028817,0.0002,87802.0,87770.0,0.1139017]
[1766155029121,0.0113886,87847.0,87778.0,0.0569873]
[1766155029413,0.0113896,87839.0,87798.0,0.0113948]
[1766155029607,0.0113912,87827.0,87793.0,0.002]
[1766155029809,0.0113927,87815.0,87782.0,0.00072]
[1766155030016,0.01156447,87807.0,87775.0,2.39232]
[1766155030414,0.01156447,87807.0,87730.0,0.00099999]
[1766155030415,0.00017077,87807.0,87771.0,0.0113983]
[1766155030616,0.0113921,87820.0,87777.0,0.0113975]
[1766155030807,0.00584,87819.0,87776.0,0.11390689]
[1766155031005,0.00017089,87806.0,87774.0,2.3922]
[1766155031413,0.00017089,87806.0,87770.0,0.00584]
[1766155031414,0.00017089,87806.0,87784.0,0.0113965]
[1766155031605,9e-08,87806.0,87785.0,2.4077964]
[1766155031805,9e-08,87806.0,87786.0,0.004]
[1766155032410,9e-08,87806.0,87792.0,0.0113956]
[1766155032715,9e-08,87806.0,87790.0,0.00017089]
[1766155032911,9e-08,87806.0,87795.0,0.0113952]
[1766155033316,9e-08,87806.0,87791.0,0.0113957]
[1766155033517,9e-08,87806.0,87790.0,0.00017089]
[1766155033921,9e-08,87806.0,87798.0,0.0113948]
[1766155034115,9e-08,87806.0,87795.0,0.00332]
[1766155034424,1.5,87838.0,87806.0,0.0113938]
[1766155034622,0.0113848,87876.0,87805.0,0.00584]
[1766155034623,2.39272,87849.0,87805.0,0.00584]
[1766155034816,0.0113889,87844.0,87806.0,0.004]
[1766155035125,2.39276,87851.0,87806.0,0.004]
[1766155035126,1.50584,87843.0,87806.0,0.004]
[1766155035315,0.0113908,87830.0,87793.0,0.0113955]
[1766155035513,0.011391,87828.0,87794.0,0.00024]
[1766155035709,0.00584,87829.0,87794.0,0.00024]
[1766155036118,0.011392,87821.0,87794.0,0.00024]
[1766155036325,0.0113914,87825.0,87794.0,0.00024]
[1766155036521,0.00584,87829.0,87799.0,0.0113947]
[1766155036721,0.00204,87830.0,87795.0,0.1138803]
[1766155036923,0.00204,87830.0,87798.0,0.0113948]
[1766155037128,0.00204,87830.0,87795.0,0.1138803]
[1766155037428,0.00204,87830.0,87796.0,0.004]
[1766155037429,0.00017079,87821.0,87796.0,0.004]
[1766155037726,0.00017079,87821.0,87796.0,0.00584]
[1766155037926,1.5,87843.0,87796.0,0.00584]
[1766155038123,0.0113916,87823.0,87796.0,0.00584]
[1766155038321,0.00584,87822.0,87796.0,0.00584]
[1766155038522,0.00584,87822.0,87793.0,0.0113954]
[1766155038523,1.5,87843.0,87797.0,0.11386992]
[1766155038728,0.00432,87842.0,87810.0,0.0113932]
[1766155038929,0.00017079,87835.0,87817.0,0.00017079]
[1766155039525,0.0113903,87834.0,87817.0,7.9e-07]
[1766155039721,0.00017079,87835.0,87817.0,7.9e-07]
[1766155040224,0.011392,87821.0,87817.0,7.9e-07]
[1766155040427,0.00584,87820.0,87817.0,7.9e-07]
[1766155040627,0.0113921,87819.0,87817.0,7.9e-07]
[1766155040826,0.0113921,87819.0,87791.0,0.00028]
[1766155041032,0.00584,87820.0,87791.0,0.00028]
[1766155041428,0.0113929,87814.0,87791.0,0.00028]
[1766155041630,0.0113907,87830.0,87791.0,0.00028]
[1766155041931,0.0113881,87850.0,87791.0,0.00028]
[1766155041932,0.00017079,87819.0,87791.0,0.00028]
[1766155042331,0.06295382,87862.0,87791.0,0.00028]
[1766155042332,0.0113889,87844.0,87814.0,0.0113927]
[1766155042533,0.00584,87840.0,87815.0,0.0113925]
[1766155042724,0.00584,87840.0,87811.0,0.004]
[1766155042929,0.06053202,87880.0,87814.0,0.0113927]
[1766155043121,0.0113854,87871.0,87840.0,0.0113893]
[1766155043332,0.00017079,87864.0,87847.0,0.00017079]
[1766155043633,0.00017079,87864.0,87847.0,7.9e-07]
[1766155043934,9e-08,87864.0,87847.0,7.9e-07]
[1766155044141,2.39312,87903.0,87852.0,0.0113878]
[1766155044434,1.5,87906.0,87885.0,0.0113835]
[1766155044633,0.0113785,87925.0,87886.0,0.0113834]
[1766155044823,0.0172186,87924.0,87886.0,0.0153834]
[1766155045029,0.00017069,87914.0,87896.0,0.00017069]
[1766155045228,0.00584,87913.0,87896.0,0.00017069]
[1766155045924,0.00017069,87914.0,87896.0,0.00017069]
[1766155046421,0.0113792,87920.0,87896.0,0.00017069]
[1766155046621,0.0113794,87917.0,87886.0,2.39688]
[1766155046831,0.01138,87913.0,87876.0,0.0113847]
[1766155047021,0.00584,87919.0,87878.0,0.0113844]
[1766155047022,0.0113794,87918.0,87878.0,0.0113844]
[1766155047221,0.0172193,87919.0,87880.0,0.0113842]
[1766155047433,0.00017069,87908.0,87891.0,0.00017069]
[1766155047632,0.0113812,87904.0,87871.0,2.39268]
[1766155047833,0.00584,87907.0,87872.0,0.11960823]
[1766155048041,0.011382,87897.0,87872.0,0.00584]
[1766155048229,0.00204,87896.0,87872.0,0.00584]
[1766155048426,0.0113824,87894.0,87872.0,0.00584]
[1766155048632,0.32395586,87890.0,87847.0,2.39248]
[1766155048836,0.0113859,87867.0,87829.0,2.39248]
[1766155049040,0.0113818,87899.0,87863.0,0.0113863]
[1766155049246,2.41870265,87898.0,87854.0,0.00584]
[1766155049537,2.41638265,87897.0,87857.0,0.0113871]
[1766155049838,0.0113846,87878.0,87851.0,0.00584]
[1766155050034,0.00584,87877.0,87851.0,0.00584]
[1766155050927,0.00584,87877.0,87852.0,0.0113877]
[1766155051127,0.00017069,87886.0,87860.0,0.0113867]
[1766155051328,0.00017069,87886.0,87861.0,0.004]
[1766155051723,0.00584,87885.0,87861.0,0.004]
[1766155052036,0.00584,87885.0,87861.0,0.0153866]
[1766155052233,0.00584,87885.0,87861.0,0.004]
[1766155052440,0.0113844,87879.0,87861.0,0.004]
[1766155052634,0.0113839,87883.0,87853.0,0.00544]
[1766155053032,0.00017069,87886.0,87853.0,0.00544]
[1766155053235,0.32395586,87930.0,87876.0,0.32395586]
[1766155053434,2.39228,87932.0,87872.0,2.39412]
[1766155053435,0.0113806,87908.0,87872.0,2.39412]
[1766155053636,0.0113806,87908.0,87844.0,0.0569446]
[1766155053637,0.011382,87898.0,87864.0,0.00584]
[1766155053837,0.00232,87897.0,87865.0,0.0172261]
[1766155054042,0.0113824,87895.0,87865.0,0.00584]
[1766155054339,0.00017069,87889.0,87871.0,0.00017069]
[1766155054637,0.00089069,87889.0,87875.0,0.0113848]
[1766155054841,0.0113787,87923.0,87875.0,0.00584]
[1766155055138,0.00584,87922.0,87890.0,0.0113828]
[1766155055335,0.00584,87922.0,87893.0,0.0113824]
[1766155055640,0.32395586,87930.0,87887.0,0.00584]
[1766155055836,0.06053202,87946.0,87887.0,0.00584]
[1766155055837,0.00017069,87916.0,87899.0,0.00017069]
[1766155056033,0.00584,87915.0,87899.0,0.00017069]
[1766155056432,0.0113803,87910.0,87875.0,0.0113848]
[1766155056732,0.00584,87915.0,87876.0,0.00404]
[1766155056934,0.0172197,87915.0,87883.0,0.0113837]
[1766155057133,0.00584,87915.0,87880.0,0.32395586]
[1766155057327,0.0113835,87886.0,87855.0,0.0113874]
[1766155057531,0.00017069,87879.0,87862.0,0.00017069]
[1766155057936,0.0113809,87906.0,87862.0,0.00017069]
[1766155058129,0.00096,87905.0,87870.0,0.32395586]
[1766155058333,0.00096,87905.0,87863.0,0.00584]
[1766155058536,0.0113819,87898.0,87870.0,0.0113855]
[1766155058838,0.0113803,87911.0,87863.0,0.00584]
[1766155058839,2.39184,87917.0,87886.0,0.0113834]
[1766155059139,0.0113806,87909.0,87893.0,0.00017069]
[1766155059335,0.00017069,87910.0,87893.0,0.00017069]
[1766155059336,0.00584,87908.0,87893.0,0.00017069]
[1766155059531,0.00017069,87910.0,87893.0,0.00017069]
[1766155059933,0.00248,87909.0,87893.0,0.00017069]
[1766155060135,0.00248,87909.0,87893.0,6.9e-07]
[1766155060336,0.00248,87909.0,87865.0,0.0113861]
[1766155060337,0.0113829,87890.0,87851.0,2.3918]
[1766155060531,0.32395586,87903.0,87852.0,0.00584]
[1766155060532,0.0113833,87888.0,87852.0,0.00584]
[1766155061339,0.00017069,87879.0,87861.0,0.00017069]
[1766155061547,0.00232,87878.0,87865.0,0.0113861]
[1766155061742,0.00232,87878.0,87861.0,0.00017069]
[1766155061944,0.00017069,87879.0,87861.0,0.00017069]
[1766155061945,0.32395586,87910.0,87862.0,0.00584]
[1766155062143,0.0113751,87951.0,87862.0,0.00584]
[1766155062144,3.89172,87928.0,87880.0,0.32395586]
[1766155062442,0.0113785,87925.0,87881.0,0.00584]
[1766155062636,0.02399381,87924.0,87881.0,0.00584]
[1766155062942,0.00017069,87911.0,87839.0,0.0683367]
[1766155063151,0.00584,87927.0,87839.0,0.0683367]
[1766155063152,0.0113808,87907.0,87877.0,0.0113845]
[1766155063345,0.0113811,87904.0,87877.0,0.0113846]
[1766155063540,0.32979586,87910.0,87875.0,0.002]
[1766155063746,0.0113822,87896.0,87860.0,0.00072]
[1766155063943,0.00584,87895.0,87860.0,0.00072]
[1766155064244,0.00017069,87886.0,87869.0,0.00017069]
[1766155064439,0.00208,87885.0,87869.0,0.00017069]
[1766155064643,0.00017069,87886.0,87869.0,0.00017069]
[1766155064841,9e-08,87886.0,87869.0,0.00017069]
[1766155065042,9e-08,87886.0,87879.0,0.0113843]
[1766155065249,9e-08,87886.0,87869.0,0.00017069]
[1766155066047,9e-08,87886.0,87869.0,0.00601069]
[1766155066252,9e-08,87886.0,87877.0,0.0113846]
[1766155066451,9e-08,87886.0,87869.0,0.00601069]
[1766155066957,2.3916,87925.0,87870.0,0.43775063]
[1766155067143,0.0113792,87919.0,87890.0,0.32395586]
[1766155067450,0.0113792,87919.0,87858.0,0.0683224]
[1766155067451,0.0113794,87918.0,87883.0,0.00584]
[1766155067657,0.0113798,87914.0,87888.0,0.0113832]
[1766155067949,0.004,87913.0,87888.0,0.0113831]
[1766155068142,0.00017069,87909.0,87892.0,0.00017069]
[1766155069943,0.00092,87919.0,87893.0,0.00132]
[1766155070145,0.0113796,87916.0,87893.0,0.00132]
[1766155070356,0.02409737,87915.0,87892.0,0.00017069]
[1766155070543,0.0113794,87917.0,87892.0,0.00017069]
[1766155070749,0.02409737,87916.0,87897.0,0.0113819]
[1766155070947,0.00017069,87915.0,87892.0,0.00017069]
[1766155071143,0.00017069,87915.0,87900.0,0.0113816]
[1766155071351,0.00017069,87915.0,87895.0,0.0113823]
[1766155071547,0.0113803,87911.0,87892.0,0.00017069]
[1766155071855,0.0113822,87896.0,87867.0,0.0113858]
[1766155072060,0.0113832,87888.0,87867.0,0.004]
[1766155072247,0.03554492,87887.0,87856.0,0.11375593]
[1766155072446,0.0113842,87880.0,87855.0,0.00584]
[1766155072650,0.02416152,87879.0,87855.0,0.00584]
[1766155072953,0.00584,87881.0,87855.0,0.00584]
[1766155072954,0.00017069,87876.0,87859.0,0.0113869]
[1766155073344,0.02418244,87875.0,87859.0,0.0113869]
[1766155073547,0.00017069,87876.0,87859.0,0.0113869]
[1766155073755,0.00017069,87876.0,87861.0,0.0113866]
[1766155074146,6.9e-07,87876.0,87858.0,0.01155769]
[1766155074347,0.10156847,87913.0,87858.0,0.01155769]
[1766155074348,0.06053202,87907.0,87864.0,0.0113863]
[1766155074565,0.0113815,87901.0,87865.0,0.00584]
[1766155074863,0.06053202,87914.0,87870.0,0.0113854]
[1766155075050,0.00584,87913.0,87871.0,2.3914]
[1766155075256,0.00017069,87901.0,87883.0,0.00017069]
[1766155075656,0.00244,87900.0,87883.0,0.00017069]
[1766155075964,0.011382,87898.0,87883.0,0.00017069]
[1766155076263,0.00584,87897.0,87883.0,0.00017069]
[1766155076466,0.00017069,87901.0,87883.0,0.00017069]
[1766155076659,0.00584,87900.0,87883.0,0.00017069]
[1766155077366,0.0113818,87899.0,87860.0,0.0113867]
[1766155077552,0.00584,87900.0,87856.0,0.00584]
[1766155077857,0.011384,87882.0,87856.0,0.00584]
[1766155078064,0.00584,87881.0,87856.0,0.00584]
[1766155078265,0.00017069,87877.0,87860.0,0.00017069]
[1766155078560,0.0113855,87871.0,87840.0,0.0113893]
[1766155078755,0.00584,87870.0,87841.0,0.00584]
[1766155078962,0.004,87869.0,87843.0,0.011389]
[1766155079152,0.0054,87868.0,87842.0,0.11380642]
[1766155079460,0.00017069,87864.0,87846.0,0.00017069]
[1766155079850,0.00017069,87864.0,87829.0,0.00128]
[1766155080047,0.0113887,87846.0,87814.0,2.39148]
[1766155080259,0.004,87845.0,87819.0,0.11382391]
[1766155080558,0.06453202,87844.0,87797.0,0.00584]
[1766155080763,0.0113921,87819.0,87797.0,0.00584]
[1766155080962,0.00584,87818.0,87797.0,0.017235]
[1766155081153,0.00225079,87817.0,87788.0,0.00208]
[1766155081351,0.00017079,87817.0,87802.0,0.0113942]
[1766155081652,2.3916,87842.0,87798.0,0.00584]
[1766155081859,0.0113905,87832.0,87799.0,0.00564]
[1766155082161,0.00584,87831.0,87799.0,0.0113947]
[1766155082460,0.00017079,87824.0,87806.0,0.00017079]
[1766155082856,9e-08,87824.0,87814.0,0.0113927]
[1766155083059,9e-08,87824.0,87818.0,0.0113921]
[1766155083253,9e-08,87824.0,87806.0,0.00017079]
[1766155083254,9e-08,87824.0,87813.0,0.0113928]
[1766155083453,9e-08,87824.0,87812.0,0.0113929]
[1766155083660,9e-08,87824.0,87819.0,0.011392]
[1766155083848,9e-08,87824.0,87806.0,0.00017079]
[1766155084365,0.0024,87823.0,87806.0,0.00017079]
[1766155084950,0.0024,87823.0,87806.0,7.9e-07]
[1766155085157,0.0113934,87810.0,87774.0,0.0113978]
[1766155085356,0.0113936,87808.0,87774.0,0.0113978]
[1766155085566,0.0012,87809.0,87769.0,0.0008]
[1766155085758,0.00010938,87822.0,87772.0,0.01150403]
[1766155085965,0.00010938,87822.0,87807.0,0.0113936]
[1766155086161,0.00010938,87822.0,87806.0,0.00017079]
[1766155086364,0.00012,87821.0,87790.0,0.00244]
[1766155086667,0.0113929,87814.0,87777.0,0.00488]
[1766155086872,0.011392,87820.0,87777.0,0.00488]
[1766155087261,0.0113939,87806.0,87777.0,0.00488]
[1766155087567,0.00584,87805.0,87777.0,0.00488]
[1766155087765,0.00404,87804.0,87771.0,0.0113983]
[1766155088165,0.00404,87804.0,87780.0,0.0113971]
[1766155088569,9e-08,87808.0,87766.0,2.39244]
[1766155088761,9e-08,87808.0,87799.0,0.0113947]
[1766155088965,9e-08,87808.0,87796.0,0.0113951]
[1766155089165,9e-08,87808.0,87787.0,0.0113963]
[1766155089360,9e-08,87808.0,87782.0,0.11390559]
[1766155089557,9e-08,87808.0,87781.0,0.0048]
[1766155089757,9e-08,87808.0,87788.0,0.0113961]
[1766155090068,9e-08,87808.0,87786.0,0.00017079]
[1766155090669,0.004,87807.0,87786.0,0.00017079]
[1766155091166,0.004,87807.0,87786.0,7.9e-07]
[1766155091558,0.0113939,87806.0,87786.0,7.9e-07]
[1766155091868,0.004,87807.0,87786.0,7.9e-07]
[1766155092268,9e-08,87808.0,87786.0,7.9e-07]
[1766155092859,0.004,87807.0,87786.0,7.9e-07]
[1766155093065,0.004,87807.0,87787.0,0.0113962]
[1766155093269,9e-08,87808.0,87786.0,7.9e-07]
[1766155093569,9e-08,87808.0,87787.0,0.1138991]